bitfinex-derivatives/quotes_SOLF0:USTF0_20260218
["timestamp","ask_amount","ask_price","bid_price","bid_amount"]
[1771452069990,34.38734164,81.252,81.217,11.0863]
[1771452070179,23.30574164,81.252,81.21,3.10183284]
[1771452071689,23.30574164,81.252,81.225,11.0853]
[1771452075090,23.0741785,81.249,81.21,11.0873]
[1771452077793,23.09535915,81.247,81.21,11.0873]
[1771452080395,23.09535915,81.247,81.217,11.0864]
[1771452082096,23.09535915,81.247,81.21,14.19172568]
[1771452082996,21.54119837,81.212,81.178,22.80459065]
[1771452083200,68.0,81.256,81.172,11.0924]
[1771452083201,3.10452568,81.2,81.172,11.0924]
[1771452083385,16.99761019,81.2,81.172,11.0924]
[1771452083588,16.99761019,81.2,81.15,3.10452568]
[1771452083793,13.88006207,81.189,81.14,3.10452568]
[1771452085393,13.88006207,81.189,81.141,0.21767553]
[1771452085991,13.88006207,81.189,81.111,22.80459065]
[1771452085992,13.29381569,81.204,81.16,3.10452568]
[1771452086198,3.10452568,81.21,81.171,0.22514986]
[1771452086396,3.10452568,81.21,81.173,11.0923]
[1771452086802,16.39805803,81.21,81.173,11.0923]
[1771452095503,13.45301793,81.229,81.18,3.10452568]
[1771452096503,13.45301793,81.229,81.192,11.0897]
[1771452098510,13.45301793,81.229,81.193,0.08635715]
[1771452098908,68.0,81.243,81.193,0.08635715]
[1771452098909,16.50311598,81.24,81.193,0.08635715]
[1771452099212,16.50311598,81.24,81.172,22.1848]
[1771452099213,13.3985903,81.24,81.201,0.09089102]
[1771452100514,13.3985903,81.24,81.212,11.087]
[1771452103514,24.02021678,81.252,81.212,11.087]
[1771452103715,12.93851678,81.252,81.218,11.0861]
[1771452105909,12.93851678,81.252,81.224,11.0853]
[1771452106112,12.95158903,81.261,81.224,11.0853]
[1771452107620,11.0812,81.255,81.221,1.03288382]
[1771452107913,12.92368139,81.254,81.221,1.03288382]
[1771452109018,13.92368139,81.254,81.221,1.03288382]
[1771452111309,11.0815,81.253,81.21,3.10452568]
[1771452111513,12.91924345,81.229,81.184,1.1098415]
[1771452112416,12.91924345,81.229,81.191,1.11134392]
[1771452112819,12.91924345,81.229,81.197,11.089]
[1771452115815,12.91924345,81.229,81.171,15.28028157]
[1771452115816,12.87903269,81.249,81.201,1.19498943]
[1771452116020,12.87903269,81.249,81.211,1.19498943]
[1771452116521,12.87903269,81.249,81.213,11.0868]
[1771452117421,1.0,81.254,81.221,12.23222598]
[1771452118021,1.0,81.254,81.226,11.0851]
[1771452119023,13.18611685,81.275,81.233,1.18066945]
[1771452119219,13.18611685,81.299,81.241,1.18058466]
[1771452119413,13.18611685,81.299,81.25,3.10452568]
[1771452120021,13.18611685,81.299,81.241,1.18058466]
[1771452120223,13.18611685,81.293,81.254,11.0812]
[1771452121519,13.18611685,81.293,81.246,11.0824]
[1771452121728,13.18611685,81.289,81.241,1.18058466]
[1771452122612,13.18611685,81.289,81.25,3.10452568]
[1771452123725,13.18611685,81.289,81.251,11.0816]
[1771452131127,13.18611685,81.289,81.227,91.98]
[1771452131428,36.95,81.33,81.155,172.5862]
[1771452131429,13.1935694,81.269,81.212,0.59558293]
[1771452132725,13.20301202,81.268,81.228,11.0848]
[1771452134432,22.148,81.308,81.22,11.0859]
[1771452134433,13.18611685,81.259,81.22,11.0859]
[1771452135432,13.1660426,81.239,81.211,11.0871]
[1771452136532,13.1660426,81.239,81.204,11.0881]
[1771452137928,13.1660426,81.259,81.211,0.65581331]
[1771452138133,13.1660426,81.259,81.175,15.28028157]
[1771452138134,13.1660426,81.249,81.196,0.65581331]
[1771452139925,13.1660426,81.249,81.21,3.41597926]
[1771452140129,13.1660426,81.249,81.211,0.31157089]
[1771452140524,3.10440837,81.26,81.224,11.0854]
[1771452140728,13.32142015,81.261,81.222,0.30877251]
[1771452141735,13.32142015,81.261,81.231,11.0844]
[1771452144837,13.32142015,81.261,81.222,0.30877251]
[1771452145034,13.32142015,81.261,81.237,11.0836]
[1771452145739,13.39808092,81.274,81.237,11.0836]
[1771452145939,13.39808092,81.272,81.23,11.0845]
[1771452146742,11.0791,81.27,81.23,11.0845]
[1771452146934,13.398201,81.269,81.23,11.0845]
[1771452147529,13.398201,81.269,81.222,0.30877251]
[1771452147738,13.398201,81.269,81.231,0.12918692]
[1771452147940,13.398201,81.269,81.221,0.12918692]
[1771452148730,13.398201,81.269,81.228,11.0848]
[1771452155345,13.398201,81.269,81.234,11.084]
[1771452168955,13.398201,81.269,81.242,11.0828]
[1771452169154,1.0,81.274,81.22,3.10440837]
[1771452169155,1.0,81.274,81.24,3.10440837]
[1771452169557,1.0,81.274,81.232,15.28028157]
[1771452169558,13.58747774,81.299,81.25,3.10440837]
[1771452170758,13.58763647,81.291,81.254,11.0813]
[1771452181062,13.6561088,81.288,81.24,3.10440837]
[1771452182262,13.6561088,81.288,81.258,11.0807]
[1771452182655,13.65764175,81.299,81.258,11.0807]
[1771452183758,13.64752007,81.298,81.258,11.0807]
[1771452184751,24.72348638,81.295,81.258,11.0807]
[1771452184957,13.64768638,81.294,81.258,11.0807]
[1771452190164,13.5273499,81.292,81.258,11.0807]
[1771452193660,13.5273499,81.292,81.264,11.0798]
[1771452202177,13.67001961,81.289,81.254,11.0812]
[1771452204976,13.67001961,81.289,81.259,11.0805]
[1771452216286,14.67001961,81.289,81.259,11.0805]
[1771452219491,14.67001961,81.289,81.253,11.0814]
[1771452219692,13.62021847,81.288,81.253,11.0814]
[1771452223296,13.62021847,81.288,81.258,11.0807]
[1771452225993,1.0,81.289,81.25,18.3811034]
[1771452225994,1.0,81.289,81.266,11.0796]
[1771452227100,14.61170614,81.289,81.258,11.0807]
[1771452227693,14.61170614,81.289,81.263,11.08]
[1771452228893,14.61170614,81.289,81.255,15.28028157]
[1771452229201,14.61170614,81.289,81.254,11.0812]
[1771452238212,13.56649214,81.281,81.241,15.28028157]
[1771452238411,13.56649214,81.281,81.24,18.3811034]
[1771452238908,13.56649214,81.281,81.246,15.28028157]
[1771452239811,13.56649214,81.281,81.256,11.081]
[1771452240402,11.078,81.279,81.244,11.0826]
[1771452240606,13.56133215,81.278,81.236,15.28028157]
[1771452241208,13.56133215,81.278,81.235,15.28028157]
[1771452241715,13.62625455,81.272,81.236,11.0836]
[1771452242414,13.62625455,81.288,81.241,15.28028157]
[1771452242622,13.62625455,81.279,81.237,15.28028157]
[1771452243714,13.62625455,81.279,81.247,11.0822]
[1771452244115,14.07377392,81.278,81.237,15.28028157]
[1771452244319,14.07377392,81.259,81.225,15.28028157]
[1771452244514,14.07377392,81.259,81.216,15.28028157]
[1771452244814,14.07377392,81.259,81.215,15.28028157]
[1771452245411,14.07377392,81.259,81.213,15.28028157]
[1771452245718,14.13269847,81.27,81.223,15.28028157]
[1771452247316,14.13269847,81.27,81.222,15.28028157]
[1771452247718,14.13269847,81.27,81.233,11.0841]
[1771452250617,14.19960539,81.269,81.233,11.0841]
[1771452250921,14.19961857,81.259,81.212,15.28028157]
[1771452251312,14.19961857,81.259,81.211,15.28028157]
[1771452251519,14.19961857,81.259,81.216,11.0865]
[1771452252621,14.13353551,81.256,81.22,3.10082183]
[1771452253922,11.081,81.257,81.221,11.0858]
[1771452258623,14.14162619,81.266,81.232,11.0843]
[1771452259019,14.14162619,81.266,81.22,3.10082183]
[1771452259020,14.22459432,81.28,81.244,11.0827]
[1771452260224,14.24295905,81.278,81.23,3.10082183]
[1771452260420,14.24295905,81.269,81.22,15.28028157]
[1771452260620,14.2429658,81.259,81.215,15.28028157]
[1771452261126,14.2429658,81.259,81.217,15.28028157]
[1771452261517,14.2429658,81.259,81.216,15.28028157]
[1771452261717,14.2429658,81.259,81.221,11.0857]
[1771452267332,11.0811,81.256,81.221,11.0857]
[1771452267736,14.17460186,81.255,81.221,11.0857]
[1771452270535,14.17721799,81.243,81.205,26.36818157]
[1771452270724,3.10351938,81.23,81.195,15.28028157]
[1771452271033,3.10351938,81.23,81.182,15.28028157]
[1771452271034,14.17722983,81.229,81.182,15.28028157]
[1771452271428,3.10351938,81.22,81.181,15.28028157]
[1771452271728,14.17722983,81.219,81.164,15.28028157]
[1771452271926,14.17722983,81.219,81.17,3.10351938]
[1771452272336,14.17722983,81.219,81.174,11.0922]
[1771452273223,14.17722983,81.219,81.182,11.0911]
[1771452275134,14.07550879,81.23,81.19,3.10351938]
[1771452275333,14.07550879,81.241,81.19,3.10351938]
[1771452275745,14.07550879,81.241,81.201,11.0885]
[1771452276242,12.49775703,81.289,81.21,3.10351938]
[1771452276243,14.07900088,81.259,81.21,3.10351938]
[1771452277537,14.0790206,81.251,81.21,14.19081938]
[1771452277738,13.48546505,81.262,81.21,3.10351938]
[1771452278047,13.48546505,81.262,81.22,3.10351938]
[1771452278844,13.48553536,81.261,81.22,14.18941938]
[1771452286447,13.48553536,81.261,81.226,11.0851]
[1771452290439,13.53178388,81.279,81.23,3.10351938]
[1771452290641,13.53178388,81.279,81.24,3.10351938]
[1771452291751,13.53178388,81.279,81.244,11.0826]
[1771452297357,13.49119654,81.277,81.244,11.0826]
[1771452300458,1.0,81.289,81.25,3.10351938]
[1771452300459,13.49040067,81.288,81.25,3.10351938]
[1771452300957,13.49040067,81.288,81.237,15.28028157]
[1771452300958,13.49040067,81.288,81.24,3.10351938]
[1771452301653,13.49040067,81.288,81.25,3.10351938]
[1771452302654,13.49040067,81.288,81.257,11.0808]
[1771452304560,1.0,81.289,81.234,86.64]
[1771452304561,1.0,81.289,81.263,11.0801]
[1771452304866,13.42742826,81.308,81.27,3.10351938]
[1771452305662,13.42742826,81.308,81.273,11.0786]
[1771452305860,13.42742826,81.308,81.28,3.10351938]
[1771452306156,13.44068215,81.329,81.28,3.10351938]
[1771452307856,13.25017402,81.322,81.282,11.0774]
[1771452310458,13.24941011,81.313,81.272,11.0787]
[1771452311761,13.12852251,81.31,81.272,11.0787]
[1771452312763,68.0,81.34,81.263,11.0801]
[1771452312764,13.12859772,81.299,81.263,11.0801]
[1771452319167,11.0744,81.306,81.271,11.079]
[1771452319469,13.31975634,81.309,81.271,11.079]
[1771452325669,13.31975634,81.309,81.278,11.078]
[1771452331278,13.33775022,81.301,81.265,11.0798]
[1771452331881,13.32522201,81.329,81.28,3.09915616]
[1771452332288,13.32522201,81.32,81.282,11.0774]
[1771452332585,13.32522201,81.32,81.27,3.09915616]
[1771452332784,13.32522201,81.32,81.28,3.09915616]
[1771452332980,13.32522201,81.32,81.293,11.076]
[1771452350792,13.40105551,81.329,81.29,3.09915616]
[1771452350987,13.40105551,81.339,81.3,3.09915616]
[1771452351189,13.40105551,81.349,81.31,3.09915616]
[1771452352793,13.40105551,81.349,81.317,11.0726]
[1771452353693,13.42447169,81.371,81.33,3.09915616]
[1771452353999,13.42447169,81.371,81.296,22.80459065]
[1771452354000,13.42447169,81.371,81.34,3.09915616]
[1771452354196,13.42447169,81.371,81.32,3.09915616]
[1771452355700,13.45521012,81.369,81.328,11.0711]
[1771452358102,13.45521012,81.369,81.334,11.0703]
[1771452360706,13.45521012,81.369,81.33,3.09915616]
[1771452361006,13.45521012,81.369,81.327,11.0714]
[1771452361807,68.0,81.397,81.32,3.09915616]
[1771452361808,13.78822075,81.359,81.32,11.0723]
[1771452362810,11.0672,81.358,81.32,11.0723]
[1771452363006,13.78823432,81.357,81.32,11.0723]
[1771452371515,13.79697554,81.384,81.33,3.09915616]
[1771452371809,13.79697554,81.384,81.34,3.09915616]
[1771452372313,13.79697554,81.384,81.352,11.0679]
[1771452375506,13.83694386,81.381,81.34,11.0695]
[1771452375714,13.83694386,81.379,81.34,11.0695]
[1771452376817,13.79305997,81.378,81.34,11.0695]
[1771452378419,11.0646,81.377,81.34,11.0695]
[1771452378621,13.77312117,81.376,81.34,11.0695]
[1771452378912,13.77313774,81.37,81.331,11.0708]
[1771452379114,16.8722939,81.37,81.331,11.0708]
[1771452379820,13.77359076,81.359,81.321,11.0721]
[1771452380924,13.77360624,81.358,81.321,11.0721]
[1771452382114,13.77581759,81.354,81.314,11.073]
[1771452382318,13.77581759,81.354,81.31,3.09915616]
[1771452383728,13.77581759,81.354,81.32,11.0722]
[1771452388326,13.77581759,81.354,81.326,11.0715]
[1771452389032,13.77581759,81.354,81.319,11.0724]
[1771452389426,13.77581759,81.354,81.32,3.09596832]
[1771452389628,13.77581759,81.354,81.331,11.0707]
[1771452389827,13.77581759,81.354,81.32,3.09596832]
[1771452390634,13.77581759,81.354,81.324,11.0717]
[1771452391230,13.77581759,81.354,81.315,26.3048847]
[1771452391431,13.77581759,81.354,81.315,15.2319847]
[1771452392229,13.77581759,81.354,81.316,15.2319847]
[1771452392730,13.77581759,81.354,81.32,11.0722]
[1771452394431,13.77581759,81.354,81.325,11.0715]
[1771452408442,13.77581759,81.354,81.321,15.2319847]
[1771452409248,13.77581759,81.354,81.322,15.2319847]
[1771452409641,13.77581759,81.354,81.322,26.3039847]
[1771452410848,13.77581759,81.354,81.327,11.0713]
[1771452415751,13.77581759,81.354,81.325,15.2319847]
[1771452418144,13.77581759,81.354,81.326,15.2319847]
[1771452419145,13.77581759,81.354,81.327,15.2319847]
[1771452419349,13.77581759,81.354,81.328,15.2319847]
[1771452420260,13.77581759,81.354,81.329,15.2319847]
[1771452420948,3.09596832,81.34,81.307,22.80459065]
[1771452421254,12.62618058,81.339,81.294,12.60478511]
[1771452421454,12.62618058,81.339,81.305,11.0743]
[1771452422258,12.62618058,81.339,81.305,23.67908511]
[1771452425347,11.0701,81.337,81.305,23.67908511]
[1771452426459,11.0701,81.337,81.25,42.91628648]
[1771452426460,12.62618058,81.336,81.293,12.60478511]
[1771452426659,12.62618058,81.329,81.293,12.60478511]
[1771452427654,11.0715,81.327,81.293,12.60478511]
[1771452427854,12.62618058,81.329,81.293,12.60478511]
[1771452429357,11.0712,81.328,81.293,12.60478511]
[1771452433253,11.072,81.323,81.293,12.60478511]
[1771452439462,11.072,81.323,81.294,85.16]
[1771452439668,11.072,81.323,81.295,12.57915978]
[1771452440267,11.0745,81.304,81.282,12.57915978]
[1771452440468,13.06359079,81.319,81.282,12.57915978]
[1771452440972,1.0,81.329,81.301,12.57915978]
[1771452445273,1.0,81.329,81.303,12.57915978]
[1771452446369,1.0,81.329,81.303,23.65365978]
[1771452446565,1.0,81.329,81.304,12.57915978]
[1771452447376,1.0,81.329,81.306,12.57915978]
[1771452450283,1.0,81.329,81.309,12.57915978]
[1771452460890,11.0692,81.344,81.311,12.57915978]
[1771452461697,24.13279079,81.344,81.311,12.57915978]
[1771452463895,11.0698,81.339,81.311,12.57915978]
[1771452469302,13.06359079,81.344,81.311,12.57915978]
[1771452471411,13.06359079,81.344,81.311,91.47915978]
[1771452475412,13.06359079,81.344,81.313,11.0732]
[1771452477316,13.06359079,81.344,81.311,91.47915978]
[1771452479311,13.06359079,81.344,81.312,12.29509348]
[1771452480613,24.13269079,81.344,81.312,12.29509348]
[1771452481516,12.58844717,81.343,81.312,12.29509348]
[1771452482109,12.58844717,81.341,81.312,12.29509348]
[1771452482315,350.0701,81.399,81.302,88.16]
[1771452482316,12.58844717,81.339,81.302,88.16]
[1771452482909,11.0712,81.328,81.302,88.16]
[1771452484517,11.0712,81.328,81.303,12.29509348]
[1771452497033,11.0712,81.328,81.302,88.16]
[1771452497236,11.0715,81.326,81.302,88.16]
[1771452497829,15.78643109,81.32,81.274,13.2745929]
[1771452498030,15.78643109,81.32,81.283,89.22]
[1771452498840,12.68983648,81.311,81.283,89.22]
[1771452502334,11.074,81.308,81.283,89.22]
[1771452507343,11.074,81.308,81.283,89.8]
[1771452507643,11.0747,81.303,81.283,89.8]
[1771452508634,11.0757,81.296,81.274,13.2745929]
[1771452508839,11.0757,81.296,81.275,89.88]
[1771452510247,11.0763,81.291,81.261,13.2745929]
[1771452510443,12.68983648,81.295,81.261,13.2745929]
[1771452510750,12.68983648,81.295,81.262,103.2545929]
[1771452511259,12.68983648,81.295,81.262,13.2745929]
[1771452511449,12.68983648,81.295,81.263,89.98]
[1771452511650,11.0771,81.286,81.263,89.98]
[1771452513157,11.0771,81.286,81.263,103.2545929]
[1771452514048,23.76693648,81.286,81.254,13.2745929]
[1771452514255,12.68983648,81.285,81.255,90.16]
[1771452514453,12.68983648,81.285,81.218,12.3]
[1771452514454,12.68983648,81.285,81.231,13.2745929]
[1771452514758,12.68983648,81.285,81.244,13.2745929]
[1771452515751,11.0777,81.281,81.244,13.2745929]
[1771452517457,12.68983648,81.285,81.244,13.2745929]
[1771452517458,11.0782,81.277,81.244,13.2745929]
[1771452518757,23.76803648,81.277,81.244,13.2745929]
[1771452520157,12.68983648,81.276,81.244,13.2745929]
[1771452521059,11.0787,81.274,81.244,13.2745929]
[1771452521265,23.76853648,81.274,81.244,13.2745929]
[1771452521765,12.68983648,81.273,81.236,11.0837]
[1771452521963,12.68983648,81.273,81.237,13.2745929]
[1771452522660,12.68983648,81.269,81.237,13.2745929]
[1771452522863,12.68983648,81.269,81.226,11.0851]
[1771452522864,12.68983648,81.259,81.216,13.2745929]
[1771452523163,11.0812,81.256,81.216,13.2745929]
[1771452523372,12.68983648,81.255,81.216,13.2745929]
[1771452524662,12.68983648,81.255,81.218,11.0861]
[1771452524960,12.68983648,81.255,81.218,24.3606929]
[1771452525167,11.0814,81.254,81.218,13.2745929]
[1771452525465,12.44219765,81.253,81.218,13.2745929]
[1771452528264,11.0818,81.251,81.218,13.2745929]
[1771452528462,12.44219765,81.253,81.218,13.2745929]
[1771452529668,23.52369765,81.253,81.218,13.2745929]
[1771452531371,1.0,81.255,81.23,3.09947249]
[1771452531572,1.0,81.255,81.231,13.2731014]
[1771452532674,12.0812,81.255,81.231,13.2731014]
[1771452540073,24.3598137,81.249,81.22,12.92295972]
[1771452542376,11.0828,81.244,81.22,12.92295972]
[1771452547886,1.0,81.255,81.22,16.02243221]
[1771452548787,1.0,81.255,81.221,11.0857]
[1771452549182,1.0,81.255,81.222,12.92295972]
[1771452551686,1.0,81.255,81.226,12.92295972]
[1771452552494,11.0818,81.251,81.226,12.92295972]
[1771452552690,1.0,81.255,81.226,12.92295972]
[1771452553688,13.2778137,81.28,81.231,12.92295972]
[1771452554392,11.0788,81.273,81.233,11.0841]
[1771452554592,11.0788,81.273,81.234,12.92295972]
[1771452566210,13.2778137,81.28,81.25,3.09947249]
[1771452567209,3.09947249,81.31,81.25,3.09947249]
[1771452567716,11.0764,81.29,81.25,14.18127249]
[1771452569908,11.0764,81.29,81.25,14.18249617]
[1771452570913,11.0772,81.285,81.25,14.18249617]
[1771452571212,3.10069617,81.29,81.24,14.18379617]
[1771452571411,3.10069617,81.29,81.24,107.26379617]
[1771452572709,11.078,81.278,81.24,107.26379617]
[1771452584416,11.0792,81.27,81.233,11.0841]
[1771452584719,11.0792,81.27,81.24,3.10069617]
[1771452598038,11.0792,81.27,81.235,11.0839]
[1771452600332,11.0792,81.27,81.24,11.0832]
[1771452606740,11.0792,81.27,81.234,11.084]
[1771452606940,11.0792,81.27,81.235,77.5]
[1771452607339,11.0792,81.27,81.236,11.0837]
[1771452607740,11.0784,81.276,81.236,11.0837]
[1771452611847,11.0795,81.267,81.23,11.0845]
[1771452612942,11.0807,81.259,81.224,22.97471438]
[1771452613247,11.0807,81.259,81.221,11.0857]
[1771452616450,11.0807,81.259,81.22,3.10069617]
[1771452617451,11.0807,81.259,81.216,95.62]
[1771452619356,11.0814,81.254,81.216,95.62]
[1771452619954,11.0829,81.243,81.21,22.97471438]
[1771452620161,3.10069617,81.26,81.2,3.10069617]
[1771452620457,3.10069617,81.26,81.201,117.73018131]
[1771452621360,3.10069617,81.26,81.202,96.12]
[1771452621760,11.0827,81.244,81.206,11.0877]
[1771452622562,11.0827,81.244,81.21,3.10069617]
[1771452623265,3.10069617,81.28,81.23,3.10069617]
[1771452624255,11.0798,81.266,81.23,3.10069617]
[1771452624960,11.08,81.264,81.23,3.10069617]
[1771452625161,22.1507,81.298,81.24,3.10069617]
[1771452626668,11.0786,81.274,81.24,3.10069617]
[1771452629957,11.0786,81.274,81.23,3.10154419]
[1771452631164,9.12008741,81.297,81.24,3.10154419]
[1771452631165,11.0777,81.281,81.24,3.10154419]
[1771452631467,11.0777,81.281,81.25,3.10154419]
[1771452632767,11.0777,81.281,81.198,12.3]
[1771452632768,11.0767,81.288,81.26,3.10154419]
[1771452633274,3.10154419,81.31,81.26,3.10154419]
[1771452633275,11.0758,81.295,81.26,3.10154419]
[1771452636466,11.0745,81.305,81.27,3.10154419]
[1771452637274,11.0734,81.312,81.27,3.10154419]
[1771452643181,11.0734,81.312,81.267,11.0794]
[1771452644483,3.10154419,81.31,81.261,96.48]
[1771452645280,11.0741,81.308,81.261,96.48]
[1771452646780,11.0741,81.308,81.27,3.10154419]
[1771452648280,11.0748,81.302,81.27,3.10154419]
[1771452652778,11.0756,81.297,81.263,11.08]
[1771452653184,11.0756,81.297,81.264,79.26]
[1771452657288,11.0747,81.303,81.267,11.0795]
[1771452657584,11.0747,81.303,81.27,3.10154419]
[1771452657884,11.0734,81.313,81.272,11.0788]
[1771452658187,11.0734,81.313,81.28,3.10154419]
[1771452659884,11.0734,81.313,81.275,97.46]
[1771452660085,11.0741,81.308,81.272,11.0788]
[1771452661882,11.0748,81.302,81.263,11.0801]
[1771452663485,11.0738,81.309,81.263,11.0801]
[1771452667092,11.0754,81.298,81.256,11.0809]
[1771452669494,3.10154419,81.29,81.246,11.0823]
[1771452669697,3.10154419,81.28,81.226,23.01018131]
[1771452669889,3.10154419,81.28,81.23,3.10154419]
[1771452670693,11.0782,81.277,81.234,11.0839]
[1771452671993,11.079,81.271,81.234,11.0839]
[1771452673494,3.10154419,81.27,81.22,3.10154419]
[1771452673697,3.10154419,81.25,81.2,3.10154419]
[1771452674794,11.082,81.249,81.209,11.0873]
[1771452674995,3.10154419,81.25,81.2,3.10154419]
[1771452675802,11.0829,81.243,81.202,11.0884]
[1771452677201,11.0836,81.238,81.197,97.94]
[1771452677396,11.0836,81.238,81.195,11.0893]
[1771452679696,3.10154419,81.22,81.172,23.01018131]
[1771452679901,3.10154419,81.22,81.17,3.10154419]
[1771452680107,3.10154419,81.23,81.18,3.10154419]
[1771452682902,11.0864,81.217,81.18,3.10154419]
[1771452683905,22.1638,81.25,81.167,98.18]
[1771452683906,3.10154419,81.22,81.167,98.18]
[1771452684211,3.10154419,81.22,81.166,98.1]
[1771452684912,11.0872,81.212,81.166,98.1]
[1771452686114,11.0878,81.207,81.166,98.1]
[1771452686313,11.0878,81.207,81.161,11.094]
[1771452686815,11.0889,81.199,81.153,11.095]
[1771452688509,11.0905,81.187,81.143,11.0964]
[1771452688714,11.0905,81.187,81.144,98.32]
[1771452689310,11.0905,81.187,81.143,11.0964]
[1771452689515,3.10154419,81.18,81.12,3.10154419]
[1771452689715,3.10154419,81.18,81.13,3.10154419]
[1771452689918,11.0932,81.168,81.121,88.5995]
[1771452690216,3.10982786,81.17,81.11,3.10982786]
[1771452690409,11.095,81.154,81.11,3.10982786]
[1771452690616,172.4645,81.213,81.031,246.2]
[1771452690617,3.10982786,81.16,81.1,3.10982786]
[1771452690812,22.1839,81.177,81.1,3.10982786]
[1771452691017,3.10982786,81.16,81.1,3.10982786]
[1771452692206,3.10982786,81.16,81.11,3.10982786]
[1771452692710,11.096,81.147,81.11,3.10982786]
[1771452694012,11.097,81.14,81.104,98.42]
[1771452694212,11.097,81.14,81.1,3.10982786]
[1771452694606,11.097,81.14,81.101,77.5]
[1771452696718,11.097,81.14,81.1,3.10982786]
[1771452696920,1.90682786,81.16,81.101,98.68]
[1771452697922,11.097,81.14,81.101,98.68]
[1771452698122,11.097,81.14,81.11,3.10982786]
[1771452699222,11.097,81.14,81.117,0.07783123]
[1771452699523,11.0958,81.148,81.117,0.07783123]
[1771452707023,1.88562786,81.15,81.117,0.07783123]
[1771452707823,11.0958,81.148,81.117,0.07783123]
[1771452708231,3.10982786,81.13,81.08,3.10982786]
[1771452708423,3.10982786,81.13,81.07,3.10982786]
[1771452708626,3.10982786,81.13,81.077,77.52]
[1771452709227,68.30982786,81.144,81.054,78.88]
[1771452709432,68.30982786,81.144,80.999,12.32]
[1771452709433,3.10982786,81.1,81.055,78.88]
[1771452710227,3.10982786,81.1,81.008,2.14589628]
[1771452710228,3.10982786,81.08,81.03,3.10982786]
[1771452710437,3.10982786,81.08,81.028,77.52]
[1771452710736,11.107,81.066,81.023,85.14]
[1771452710934,3.10982786,81.06,81.018,94.06]
[1771452711133,2.30982786,81.06,80.996,12.32]
[1771452711329,68.30982786,81.089,80.996,12.32]
[1771452711529,3.10982786,81.06,81.0,3.10982786]
[1771452711734,2.70982787,81.08,81.02,3.10982786]
[1771452711925,9.90480003,81.083,81.04,3.10982786]
[1771452712324,3.10982786,81.09,81.03,3.10982786]
[1771452712528,11.1058,81.075,81.03,3.10982786]
[1771452712736,3.10982786,81.08,81.03,3.10982786]
[1771452713430,76.72982786,81.11,81.03,3.10982786]
[1771452713634,3.10982786,81.09,81.03,3.10982786]
[1771452714839,11.1062,81.072,81.03,3.10982786]
[1771452715037,3.10982786,81.09,81.03,3.10982786]
[1771452715341,3.10982786,81.09,81.04,3.10982786]
[1771452715839,11.1049,81.082,81.04,3.10982786]
[1771452716141,3.10982786,81.09,81.04,3.10982786]
[1771452716327,3.10982786,81.09,81.03,3.10982786]
[1771452716836,11.1059,81.074,81.03,3.10982786]
[1771452717131,11.1059,81.074,81.04,3.10982786]
[1771452719638,11.1047,81.083,81.04,3.10982786]
[1771452720741,11.1036,81.091,81.05,3.10982786]
[1771452721633,11.1025,81.1,81.05,3.10982786]
[1771452721839,3.10982786,81.13,81.08,3.10982786]
[1771452722035,3.10982786,81.12,81.06,3.10982786]
[1771452722230,3.10982786,81.12,81.07,3.10982786]
[1771452724140,11.1017,81.105,81.07,3.10982786]
[1771452724737,11.1017,81.105,81.06,3.10982786]
[1771452725933,11.1026,81.098,81.06,3.10982786]
[1771452726331,11.1026,81.098,81.07,3.10982786]
[1771452726841,55.68,81.137,81.04,3.10982786]
[1771452726842,11.1047,81.083,81.04,3.10982786]
[1771452727037,3.10982786,81.09,81.04,3.10982786]
[1771452728741,11.106,81.074,81.04,3.10982786]
[1771452728934,3.10982786,81.08,81.02,3.10982786]
[1771452729133,85.52,81.121,81.02,3.10982786]
[1771452729134,3.10982786,81.07,81.02,3.10982786]
[1771452729339,3.10982786,81.07,81.01,3.10982786]
[1771452729639,3.10982786,81.08,81.02,3.10982786]
[1771452730038,172.6641,81.119,81.02,3.10982786]
[1771452730039,11.1083,81.057,81.02,3.10982786]
[1771452730541,77.52,81.097,81.04,3.10982786]
[1771452730734,3.10982786,81.1,81.05,3.10982786]
[1771452730935,3.10982786,81.11,81.05,3.10982786]
[1771452731445,3.10982786,81.1,81.05,3.10982786]
[1771452731645,0.07813652,81.088,81.05,3.10982786]
[1771452732645,0.07813652,81.088,81.04,3.10982786]
[1771452733246,11.1054,81.078,81.04,3.10982786]